Cogmind - Beta 13 @@@ ROGUE MODE // 2024.04.18 @ 14:36:42 Player: Powerlich_soros Result: Destroyed by S-10 Pest with Light Assault Rifle Performance ------------- Evolutions (0) 0 Regions Visited (1) 200 Robots Destroyed (16) 80 Value Destroyed (383) 383 Prototype IDs (0) 0 Alien Tech Used (0) 0 Bonus (0) 0 TOTAL SCORE: 663 Bonus ------- None Cogmind --------- Core Integrity 0/250 Matter 293/300 Energy 94/100 System Corruption 0% Temperature Cool (0) Movement Rolling (90) Location -10/Materials Parts ------- > --- POWER (1) -------- (None) > --- PROPULSION (2) --- Wheel Compact Wheel > --- UTILITY (2) ------ Large Storage Unit Visual Processing Unit > --- WEAPON (2) ------- Beam Cannon Maul > --- INVENTORY (15) --- Light Ion Engine Wheel Compact Wheel Light Assault Rifle Peak State ------------ > --- POWER ------------ Ion Engine > --- PROPULSION ------- Improved Hover Unit Improved Hover Unit > --- UTILITY ---------- Small Storage Unit Visual Processing Unit > --- WEAPON ----------- Assault Rifle Maul > --- INVENTORY -------- Light Ion Engine Wheel Compact Wheel Compact Wheel Improved Hover Unit Improved Hover Unit EM Pulse Gun Beam Cannon [Rating: 12] Favorites ----------- Power Ion Engine Engine Ion Engine Propulsion Compact Wheel Wheel Compact Wheel Hover Unit Improved Hover Unit Utility Visual Processing Unit Storage Small Storage Unit Processor Visual Processing Unit Weapon Assault Rifle Energy Gun Small Laser Energy Cannon Beam Cannon Ballistic Gun Assault Rifle Impact Weapon Maul Build | -11 -10 ------- Run | Yrd Mat Slots Evolved . | . . Power . | . . Propulsion . | . . Utility . | . . Weapon . | . . Parts Attached 18 | 6 12 Power 2 | 1 1 Engine 2 | 1 1 Core . | . . Reactor . | . . Propulsion 8 | 2 6 Treads . | . . Leg . | . . Wheel 6 | 2 4 Hover 2 | . 2 Flight . | . . Utility 3 | 1 2 Device . | . . Storage 2 | 1 1 Processor 1 | . 1 Hackware . | . . Protection . | . . Artifact . | . . Weapon 5 | 2 3 Energy Gun 2 | 1 1 Energy Cannon 1 | . 1 Ballistic Gun 1 | 1 . Ballistic Cannon . | . . Launcher . | . . Special Weapon . | . . Impact Weapon 1 | . 1 Slashing Weapon . | . . Piercing Weapon . | . . Special Melee Weapon . | . . Unidentified Prototypes . | . . Parts Lost 5 | . 5 Power 1 | . 1 Propulsion 2 | . 2 Utility . | . . Weapon 2 | . 2 Highest Loss Streak 5 | . 5 To Critical Strikes . | . . Average Slot Usage (%) 94 | . 94 Engine 13 | . 13 Wheel 21 | . 21 Hover 4 | . 4 Storage 14 | . 14 Processor 11 | . 11 Energy Gun 6 | . 6 Ballistic Gun 12 | . 12 Impact Weapon 7 | . 7 Naked Turns . | . . Heaviest Build 30 | 13 30 Greatest Support 32 | 32 32 Greatest Overweight (x) 8 | 1 8 Average Overweight (x) . | . . Largest Inventory Capacity 15 | 8 15 Average Capacity 10 | 6 10 Most Carried 8 | 2 8 Average Carried 5 | 1 5 Final Capacity 15 | 8 15 Final Carried 4 | 2 4 Class Distribution -------------------- 100% | Mutant Dominant Class ---------------- Mutant | -10/Materials Resources | -11 -10 ----------- Run | Yrd Mat Matter Collected 420 | 195 225 Remotely . | . . Salvage Created 409 | . 409 Parts 35 | . 35 Haulers Intercepted . | . . Recyclers Shooed 1 | . 1 Parts Field Recycled . | . . Retrieved Matter . | . . Parts Self-Destructed . | . . Prevented . | . . Kills | -11 -10 ------- Run | Yrd Mat Combat Hostiles Destroyed 12 | . 12 Melee 5 | . 5 Guns 6 | . 6 Classes Destroyed 4 | . 4 Worker 2 | . 2 Watcher 2 | . 2 Swarmer 3 | . 3 Grunt 9 | . 9 Best Kill Streak 3 | . 3 Combat Bots Only 3 | . 3 Max Kills in Single Turn 1 | . 1 Gunslinging . | . . Exploded . | . . Melee 1 | . 1 Uniques/NPCs Destroyed . | . . Combat | -11 -10 -------- Run | Yrd Mat Hostile Shots Fired 107 | . 107 Missed 30 | . 30 Damage Taken 746 | . 746 Core 252 | . 252 Absorbed by Shields . | . . Core Remaining (%) 100 | 100 . Volleys Fired 34 | . 34 Largest 2 | . 2 Hottest 60 | . 60 Shots Fired 57 | . 57 Gun 48 | . 48 Cannon 9 | . 9 Launcher . | . . Special . | . . Kinetic 24 | . 24 Thermal 32 | . 32 Explosive . | . . Electromagnetic 1 | . 1 Robot Hit Streak 6 | . 6 Robot Miss Streak 5 | . 5 Penetration Max . | . . Secondary Targets 2 | . 2 Max Gunslinging Chain 1 | . 1 Shots Hit Robots 42 | . 42 Core Hits 19 | . 19 Critical Kills 2 | . 2 Critical Parts Destroyed 4 | . 4 Critical Strikes 6 | . 6 Smash 6 | . 6 Melee Attacks 25 | . 25 Impact 25 | . 25 Slashing . | . . Piercing . | . . Sneak Attacks . | . . Combat Hostiles . | . . Follow-up Attacks . | . . Damage Inflicted 907 | . 907 Guns 346 | . 346 Cannons 53 | . 53 Explosions . | . . Melee 508 | . 508 Ramming . | . . Kinetic 185 | . 185 Thermal 214 | . 214 Explosive . | . . Electromagnetic . | . . Impact 508 | . 508 Slashing . | . . Piercing . | . . Highest Corruption . | . . Average Corruption . | . . Corruption Purged . | . . Corruption Blocked . | . . Overload Shots . | . . Overflow Damage 196 | . 196 Projectiles . | . . Explosions . | . . Melee 196 | . 196 Knockbacks 5 | . 5 Impact 5 | . 5 Kinetic . | . . Secondary . | . . Self-Inflicted Damage . | . . Shots . | . . Rammed . | . . Targets Rammed . | . . Kicked . | . . Crushed . | . . Highest Temperature 126 | . 126 Average Temperature 37 | . 37 Received Heat Transfer 204 | . 204 Siege Activations . | . . Robots Corrupted . | . . Combat Hostiles . | . . Parts Fried . | . . Impact Corruptions 7 | . 7 Robots Melted . | . . Combat Hostiles . | . . Parts Melted . | . . Heat Transferred 486 | . 486 Parts Sabotaged . | . . Parts Stolen . | . . Parts Stripped . | . . Power Chain Reactions . | . . Alert | -11 -10 ------- Run | Yrd Mat Peak Influence 254 | . 254 Initial . | . . Average 137 | . 147 Maximum Alert Level 1 | . 1 Low Security (%) 68 | 100 66 Level 1 31 | . 33 Level 2 . | . . Level 3 . | . . Level 4 . | . . Level 5 . | . . High Security . | . . Max Security . | . . Squads Dispatched 3 | . 3 Investigation 2 | . 2 Extermination . | . . Reinforcement 1 | . 1 Assault . | . . Garrison . | . . Intercept . | . . Searches Triggered . | . . Construction Impeded . | . . Haulers Reinforced . | . . Active Scanning Responses . | . . Cargo Convoy Interrupts . | . . Stealth | -11 -10 --------- Run | Yrd Mat Distress Signals 1 | . 1 Communications Jammed . | . . Distress Signals . | . . Times Spotted 22 | . 22 Peak Tracking Total 6 | . 6 Tactical Retreats 3 | . 3 Traps | -11 -10 ------- Run | Yrd Mat Traps Triggered 2 | . 2 Indirectly . | . . Trap Hack Attempts . | . . Triggered . | . . Disarmed 6 | . 6 Reprogrammed . | . . Reused . | . . Traps Extracted . | . . Installed . | . . Triggered . | . . Machines | -11 -10 ---------- Run | Yrd Mat Machines Disabled . | . . Max in Single Turn . | . . Machines Repaired . | . . Machines Dismantled . | . . Machines Sabotaged . | . . Overloaded Fab Kills . | . . Hacking | -11 -10 --------- Run | Yrd Mat Machines Accessed 5 | . 5 Terminals 5 | . 5 Fabricators . | . . Repair Stations . | . . Recycling Units . | . . Scanalyzers . | . . Garrison Access . | . . Total Hacks 11 | . 11 Successful 8 | . 8 Failed 3 | . 3 Catastrophic 1 | . 1 Database Lockouts . | . . Manual 7 | . 7 Terminals 11 | . 11 Fabricators . | . . Repair Stations . | . . Recycling Units . | . . Scanalyzers . | . . Garrison Access . | . . Terminal Hacks 8 | . 8 Terminal Index 1 | . 1 Alert Level 1 | . 1 Locate Traps 1 | . 1 Disarm Traps 1 | . 1 Transport Status 1 | . 1 Recall Investigation 1 | . 1 Zone Layout 2 | . 2 Fabricator Hacks . | . . Repair Station Hacks . | . . Recycling Unit Hacks . | . . Scanalyzer . | . . Garrison Access Hacks . | . . Unauthorized Hacks . | . . Terminals . | . . Fabricators . | . . Repair Stations . | . . Recycling Units . | . . Scanalyzers . | . . Garrison Access . | . . Data Cores Recovered . | . . Used . | . . Hacking Detections 4 | . 4 Full Trace Events 1 | . 1 Feedback Events . | . . Feedback Blocked . | . . Robot Schematics Acquired . | . . Robots Built . | . . Authchips . | . . Time . | . . Total Robot Build Rating . | . . Part Schematics Acquired . | . . Parts Built . | . . Authchips . | . . Time . | . . Total Part Build Rating . | . . Parts Repaired . | . . Time . | . . Parts Recycled . | . . Recycled Matter . | . . Retrieved Matter . | . . Retrieved Components . | . . Parts Scanalyzed . | . . Part Schematics Acquired . | . . Parts Damaged . | . . Bothacking | -11 -10 ------------ Run | Yrd Mat Used RIF Installer . | . . Robots Hacked . | . . Non-combat . | . . Combat . | . . Robot Hacks Applied . | . . Relay Couplers Released . | . . Fabnet Peak Effective % . | . . Robots Rewired . | . . Allies Hacked . | . . Hacks Repelled . | . . Allies | -11 -10 -------- Run | Yrd Mat Total Allies . | . . Largest Group . | . . Highest-Rated Group . | . . Highest-Rated Ally . | . . Total Orders . | . . Ally Attacks . | . . Total Damage . | . . Kills . | . . Allies Corrupted . | . . Allies Melted . | . . Intel | -11 -10 ------- Run | Yrd Mat Robot Analysis Total . | . . Derelict Logs Recovered . | . . Drone Launches . | . . Drone Recoveries . | . . Exploration | -11 -10 ------------- Run | Yrd Mat Turns Passed 809 | 54 755 Spaces Moved 516 | 45 471 Core 9 | 4 5 Treads . | . . Legs . | . . Wheels 411 | 41 370 Hover 96 | . 96 Flight . | . . Fastest Speed 50 | 50 56 Average Speed 104 | 96 104 Slowest Speed 450 | 100 450 Overloaded Moves . | . . Propulsion Burnouts . | . . Robots Hopped . | . . Cave-ins Triggered . | . . Exploration Rate (%) 40 | 4 76 Regions Visited 1 Branch Regions . Pre-discovered Areas . | . . Known Exits Taken . | . . Unknown Exits Taken 1 | 1 . Scrap Searched . | . . Spaces Dug 8 | . 8 Terrain Destroyed 8 | . 8 Melee 8 | . 8 Projectile . | . . AOE . | . . Terrain Rammed . | . . Walls Destroyed . | . . Machines Disabled . | . . Actions | -11 -10 --------- Run | Yrd Mat Total 682 | 52 630 Wait 61 | . 61 Move 515 | 44 471 Hop . | . . Pick Up 15 | 2 13 Fast Attach 10 | 6 4 Attach 6 | . 6 Detach 2 | . 2 Swap 2 | . 2 Drop 12 | . 12 Fire 34 | . 34 Melee 25 | . 25 Ram . | . . Kick . | . . Crush . | . . Escape Stasis . | . . Rewire . | . . Trap . | . . Miscellaneous . | . . Route ------- -11/Scrapyard -10/Materials (discovered 4 exits: [*Mat x3] / [*Min]) History --------- Turn | Location | Event 18 | -11/Scrapyard | Discovered new exit (range 16) 55 | -11/Scrapyard | Entered Materials 162 | -10/Materials | Discovered new exit (range 12) 300 | -10/Materials | Discovered new exit (range 8) 309 | -10/Materials | Build established: Mutant 567 | -10/Materials | Discovered new exit (range 18) 701 | -10/Materials | Discovered new exit (range 13) 750 | -10/Materials | Core integrity fell below 50% 793 | -10/Materials | Core integrity fell below 20% 810 | -10/Materials | Destroyed by S-10 Pest with Light Assault Rifle Last Messages --------------- 00749_ G-47 Trooper knocked back. 00753_ EM Pulse Gun destroyed. 00754_ K-01 Serf collects debris. 00754_ G-47 Trooper knocked back. 00756_ Com. Wheel destroyed. 00764_ G-47 Trooper suffers critical hit (Smash). 00764_ Destroyed Imp. Heat Sink. 00764_ G-47 Trooper system corrupted by crushing effect. 00764_ G-47 Trooper knocked back. 00768_ G-47 Trooper destroyed. 00773_ G-34 Mercenary suffers critical hit (Smash). 00773_ G-34 Mercenary destroyed. 00776_ K-01 Serf collects debris. 00783_ Ion Engine destroyed. 00783_ K-01 Serf destroyed. 00784_ K-01 Serf collects debris. 00785_ Com. Wheel destroyed. 00787_ K-01 Serf collects debris. 00801_ Acquired 16 matter. 00805_ K-01 Serf collects debris. Map ----- +----------------------------------------------------+ | | | | | | | ?????????????????????????????????###############?? | | ?????????????????????????????????# # ?? | | ?????????????????????????????????# # ?? | | ?????????????????????????????????# ! # "" | | ?????????????????###?????????????# # "" | | ????????????????? #?????????????# # | | ????????????????? #?????????????# ###+### | | ????????????????? #?????????????# [ + | | ?????????????????" #?????????????# # | | ?????????????????" #####??????#### ####+#### ### | | ?????????????????" # #??????# T # = ### | | ????????????????? # < #??????# #^%^!^ = ""# | | ????????????????? # #??????# """ / ^ == Y"# | | ???????#########+### ######## """ #^ ^ = ""# | | ????? # """ # ### | | ????????????# / # #?? | | ????????????# % ######## #?? | | ????????????#########g##### #??????# #?? | | ????????????????# *k%! # #??????##T #######?? | | ????????????????# /=! * # #?????######???????? | | ????????????????#= =k !# k#?????# ####???????? | | ????????????????#%* ! # #?????# #???????? | | ????????????????#[ @s #?????# #???????? | | ????????????????# # #?????# #???????? | | ????????????????# # #?????# #???????? | | ????????????????# # #?????# #???????? | | ????????????????########### #?????# "" #???????? | | ??????????????????????????# #?????# T" #???????? | | ??????????????????????????# #?????# "" #???????? | | ?????????###########??????# ####### #???????? | | ?????????# ! #??????# # ###+########## | | ?????????# #??????# # | | ?????????# #??????# # < | | ?????????# #??????# # =* | | ?????????# #??????# # ###+########## | | ?????????# """ """ #??????# ## [ #?????? | | ?????????# """ """ #??????# ## #?????? | | ?????????# """ """ #??????# ##!! #?????? | | ##############+############ ##! #?????? | | ## #?????? | | ## #?????? | | #########?????? | | ####################+########### !##?????????? | | ??######## #?# ###??# !#?????????? | | ??# ## #?# #?# !#????###### | | ??#""" ## #?# ## #????# """ | | ??#""" ## % #??# # !#????# """ | +----------------------------------------------------+ Best States ------------- Heat Dissipation 25 Energy Generation 10 Energy Capacity 250 Matter Stores 300 Matter Capacity 300 Sight Range 18 Terrain Scan Density 10 Evasion (%) 40 Item Schematics ----------------- None Robot Schematics ------------------ None Fabricated ------------ Nothing Alien Tech Used ----------------- None Achievements -------------- None Challenges ------------ None Game ------ Seed SpacefoldMomentumStripper Manual? 0 Play Time 00:15:27 Cumulative 12.5 hours Start 2024.04.18 @ 14:18:13 End 2024.04.18 @ 14:36:42 Sessions 1 Manual Loads 0 Difficulty Rogue Special Mode None Game No. 12 Rogue 12 Adventurer 0 Explorer 0 Win Type - Total 0 Types 0/0/0/0/0/0/0/0/0 Lore% 11 Gallery% 14 Achievement% 14 Wizard Run 0 Options --------- Layout 0 ASCII 1 Keyboard 1 Movement Vi Keybinds 0 Fullscreen 1 Font 20/SmallcapsGlow Map View 66x50 Zoom Use 0% Tactical HUD 1 Map Filters NONE Filters NONE Steam 1 RUN: 02917efb-0871-4210-8ebd-6c73f19b286c